Cogmind - Beta 13 --- EXPLORER MODE // 2024.05.29 @ 19:11:42 Player: Shippujinlai Result: Destroyed by X-87 Electro with Compact HERF Cannon Performance ------------- Evolutions (7) 3500 Regions Visited (23) 4600 Robots Destroyed (210) 1050 Value Destroyed (8684) 8684 Prototype IDs (17) 340 Alien Tech Used (0) 0 Bonus (4174) 4174 TOTAL SCORE: 22348 Bonus ------- High Alert Combat Kills 51 Follower Combat Kills 2058 Entered Garrisons 200 Network Hubs Disabled 200 Met Warlord at Base 500 MAIN.C Attacked Warlord 500 Built Enhanced Grunts 300 A7 Reached Mainframe 300 Met R17 at Cetus 500 Friendly Fire -435 Cogmind --------- Core Integrity 0/1300 Matter 244/300 Energy 53/100 System Corruption 14% Temperature Cool (0) Movement Core (450) Ox8 Location -3/Garrison Parts ------- > --- POWER (2) -------- (None) > --- PROPULSION (4) --- (None) > --- UTILITY (14) ----- Improved Melee Analysis Suite Advanced Target Analyzer > --- WEAPON (2) ------- Enhanced Nova Cannon Enhanced Nova Cannon > --- INVENTORY (5) ---- (None) Peak State ------------ > --- POWER ------------ Antimatter Reactor Quantum Reactor > --- PROPULSION ------- Centrium Heavy Treads Centrium Heavy Treads > --- UTILITY ---------- Medium Storage Unit Improved Melee Analysis Suite Improved Melee Analysis Suite Improved Melee Analysis Suite Improved Target Analyzer Improved Force Booster Improved Force Booster Hardened Medium Armor Plating Centrium Medium Armor Plating Centrium Medium Armor Plating > --- WEAPON ----------- Rocket Array Powered Hammer > --- INVENTORY -------- Aluminum Leg Carbon-fiber Leg Improved Carbon-fiber Leg Heat Sink Missile Launcher Missile Launcher Missile Launcher Spear [Rating: 116] Favorites ----------- Power Antimatter Reactor Engine Ion Engine Power Core Light Fission Core Reactor Antimatter Reactor Propulsion Centrium Heavy Treads Treads Centrium Heavy Treads Leg Advanced Myomer Leg Flight Unit VTOL Module Utility Improved Melee Analysis Suite Device Microactuators Storage Medium Storage Unit Processor Improved Melee Analysis Suite Hackware Improved Hacking Suite Protection Centrium Medium Armor Plating Weapon Spear Energy Gun EM Pulse Gun Energy Cannon Enhanced Nova Cannon Ballistic Gun Gauss Rifle Launcher Gamma Bomb Array Impact Weapon Powered Hammer Slashing Weapon Axe Piercing Weapon Spear Special Melee Weapon Dirty Datajack Build | -11 -10 -10 -9 -8 -8 -7 -7 -7 -6 -6 -6 -6 -6 -5 -5 -5 -5 -4 -4 -4 -4 -3 -3 ------- Run | Yrd Mat Min Mat Mat Sto Fac Low Low Fac Ext Cet Arc Hub Fac Upp Upp War Pro Fac Upp Upp Res Gar Slots Evolved 15 | . 1 . 2 2 . 2 . . 2 . . . . 2 . . . . 2 . . 2 . Power 1 | . . . . . . 1 . . . . . . . . . . . . . . . . . Propulsion 2 | . . . . . . 1 . . . . . . . 1 . . . . . . . . . Utility 12 | . 1 . 2 2 . . . . 2 . . . . 1 . . . . 2 . . 2 . Weapon . | . . . . . . . . . . . . . . . . . . . . . . . . Parts Attached 157 | 7 1 . 6 . 10 17 2 . 6 7 8 1 1 18 . 3 2 2 21 16 1 3 25 Power 23 | 1 . . 1 . 1 5 . . . 1 1 1 1 1 . . . 1 2 2 . . 5 Engine 5 | 1 . . 1 . 1 1 . . . 1 . . . . . . . . . . . . . Core 12 | . . . . . . 4 . . . . . 1 . 1 . . . 1 2 2 . . 1 Reactor 6 | . . . . . . . . . . . 1 . 1 . . . . . . . . . 4 Propulsion 28 | 2 . . 3 . . 4 . . 1 2 1 . . 2 . . . . 3 3 . 3 4 Treads 11 | 2 . . . . . . . . . . 1 . . 2 . . . . 2 . . . 4 Leg 16 | . . . 3 . . 4 . . 1 2 . . . . . . . . 1 2 . 3 . Wheel . | . . . . . . . . . . . . . . . . . . . . . . . . Hover . | . . . . . . . . . . . . . . . . . . . . . . . . Flight 1 | . . . . . . . . . . . . . . . . . . . . 1 . . . Utility 62 | 2 1 . . . 7 5 2 . 5 3 5 . . 10 . 2 . 1 10 5 1 . 3 Device 27 | . 1 . . . 4 2 1 . 2 . 2 . . 2 . . . 1 10 2 . . . Storage 2 | 1 . . . . . . . . . . . . . . . . . . . 1 . . . Processor 17 | 1 . . . . 1 3 . . 2 1 1 . . 5 . 1 . . . 1 . . 1 Hackware 2 | . . . . . . . . . . . . . . . . 1 . . . . 1 . . Protection 14 | . . . . . 2 . 1 . 1 2 2 . . 3 . . . . . 1 . . 2 Artifact . | . . . . . . . . . . . . . . . . . . . . . . . . Weapon 44 | 2 . . 2 . 2 3 . . . 1 1 . . 5 . 1 2 . 6 6 . . 13 Energy Gun 7 | 2 . . . . . 1 . . . . . . . . . . . . 2 1 . . 1 Energy Cannon 2 | . . . . . . . . . . . . . . . . . . . . . . . 2 Ballistic Gun 8 | . . . . . 1 . . . . 1 . . . . . . . . . 2 . . 4 Ballistic Cannon . | . . . . . . . . . . . . . . . . . . . . . . . . Launcher 11 | . . . 2 . . . . . . . . . . 3 . . . . 1 1 . . 4 Special Weapon . | . . . . . . . . . . . . . . . . . . . . . . . . Impact Weapon 5 | . . . . . . 1 . . . . 1 . . . . 1 1 . 1 . . . . Slashing Weapon 7 | . . . . . 1 1 . . . . . . . . . . . . 1 2 . . 2 Piercing Weapon 2 | . . . . . . . . . . . . . . 2 . . . . . . . . . Special Melee Weapon 2 | . . . . . . . . . . . . . . . . . 1 . 1 . . . . Unidentified Prototypes 12 | . . . . . 3 3 . . . . 3 . . 1 . . . . 1 . . 1 . Corrupted Parts 2 | . . . . . . . . . . . . . . . . . . . 1 1 . . . System Corruption 7 | . . . . . . . . . . . . . . . . . . . 2 5 . . . Parts Lost 93 | . . 5 . 1 3 1 1 . . 7 3 . 1 10 . 3 . 5 14 5 . 1 33 Power 18 | . . 1 . 1 . . . . . 2 1 . 1 1 . . . 2 2 1 . 1 5 Propulsion 16 | . . 2 . . . . . . . 1 . . . 1 . . . . 3 1 . . 8 Utility 37 | . . . . . 2 1 1 . . 3 2 . . 6 . 2 . 2 5 3 . . 10 Weapon 22 | . . 2 . . 1 . . . . 1 . . . 2 . 1 . 1 4 . . . 10 Highest Loss Streak 14 | . . 5 . 1 2 1 1 . . 4 3 . 1 2 . 3 . 2 5 3 . 1 14 To Critical Strikes 1 | . . . . . . . . . . . . . . . . . . . 1 . . . . Average Slot Usage (%) 79 | . 88 97 59 57 89 95 92 100 99 93 82 91 91 84 83 74 83 78 67 48 70 74 55 Engine 1 | . 12 11 6 7 4 5 . . . . . . . . . . . . . . . . . Core 5 | . . . . . . 7 14 14 12 8 . 4 3 3 5 5 5 7 7 2 10 7 . Reactor 2 | . . . . . . . . . . . 5 6 6 7 5 5 5 1 . . . . 4 Treads 6 | . 25 24 . . . . . . . . 5 6 6 11 11 11 11 11 4 . . . 3 Leg 6 | . . . 15 16 16 20 21 21 18 17 7 6 6 . . . . . . 3 10 17 7 Device 7 | . 1 12 . . 30 19 10 14 16 16 12 12 12 7 . . . . 7 1 5 4 1 Storage 5 | . 12 12 10 8 8 7 7 7 6 6 6 6 6 5 5 5 5 5 5 3 . . . Processor 24 | . 12 12 10 8 12 12 21 21 26 22 19 25 25 24 27 28 33 33 30 32 30 27 24 Hackware 1 | . . . . . . . . . . . . . . . . 1 5 5 3 . . 4 . Protection 6 | . . . . . 3 7 4 7 5 9 11 12 12 14 16 8 5 3 . . 5 4 2 Energy Gun 1 | . 25 24 . . . . . . . . . . . . . . . . 1 1 . . . Ballistic Gun 1 | . . . . . . . . . . . 6 6 6 . . . . . . . 10 9 4 Launcher 1 | . . . 17 16 6 . . . . . . . . 3 5 1 . . . . . . . Impact Weapon 2 | . . . . . . 2 7 7 6 6 5 6 6 1 . . 5 5 3 . . . . Slashing Weapon 2 | . . . . . 5 10 7 7 6 3 . . . . . . . . 3 2 . . 1 Piercing Weapon 1 | . . . . . . . . . . . . . . 3 5 5 5 3 . . . . . Naked Turns . | . . . . . . . . . . . . . . . . . . . . . . . . Heaviest Build 94 | 19 20 20 25 25 42 38 39 39 60 60 68 81 83 94 82 82 58 58 55 40 40 40 57 Greatest Support 160 | 40 40 40 34 34 34 85 85 85 85 85 80 80 80 160 107 107 107 107 155 40 40 101 112 Greatest Overweight (x) 11 | . . 3 4 . 1 1 . . . . . 1 1 . . . . . 6 6 . . 11 Average Overweight (x) . | . . . . . . . . . . . . . . . . . . . . . . . . Largest Inventory Capacity 10 | 10 10 10 10 10 10 10 10 10 10 10 10 10 10 10 10 10 10 10 10 10 5 5 5 Average Capacity 9 | 7 10 10 10 10 10 10 10 10 10 10 10 10 10 10 10 10 10 10 10 6 5 5 5 Most Carried 10 | 1 2 4 8 10 10 10 10 8 9 9 10 9 9 10 8 10 10 10 9 7 5 5 5 Average Carried 7 | . 1 3 6 9 7 9 9 8 7 7 9 9 9 8 8 8 9 10 7 5 5 4 3 Final Capacity 10 | 10 10 10 10 10 10 10 10 10 10 10 10 10 10 10 10 10 10 10 10 5 5 5 5 Final Carried 10 | 1 2 4 7 10 8 10 8 8 9 8 9 9 9 8 8 9 10 10 7 5 5 5 . Class Distribution -------------------- 39% | Scavenger-Mutant 34% | Hacker-Gladiator 23% | Hacker-Mutant Dominant Class ---------------- Hacker-Mutant | -10/Materials Hacker-Mutant | -10/Mines Hacker-Mutant | -9/Materials Hacker-Mutant | -8/Materials Hacker-Mutant | -8/Storage Hacker-Gladiator | -7/Factory Hacker-Gladiator | -7/Lower Caves Hacker-Gladiator | -7/Lower Caves Hacker-Gladiator | -6/Factory Hacker-Gladiator | -6/Extension Scavenger-Mutant | -6/Cetus Scavenger-Mutant | -6/Archives Scavenger-Mutant | -6/Hub_04(d) Scavenger-Mutant | -5/Factory Scavenger-Mutant | -5/Upper Caves Scavenger-Mutant | -5/Upper Caves Hacker-Gladiator | -5/Warlord Hacker-Gladiator | -4/Proximity Caves Hacker-Gladiator | -4/Factory Hacker-Mutant | -4/Upper Caves Scavenger-Mutant | -4/Upper Caves Hacker-Mutant | -3/Research Hacker-Mutant | -3/Garrison Resources | -11 -10 -10 -9 -8 -8 -7 -7 -7 -6 -6 -6 -6 -6 -5 -5 -5 -5 -4 -4 -4 -4 -3 -3 ----------- Run | Yrd Mat Min Mat Mat Sto Fac Low Low Fac Ext Cet Arc Hub Fac Upp Upp War Pro Fac Upp Upp Res Gar Matter Collected 3636 | 270 . 210 218 222 200 175 20 . 40 88 59 71 32 537 101 68 . 59 225 267 29 53 692 Remotely 95 | . . . . . . 85 . . . . . . . . . . . 10 . . . . . Salvage Created 9697 | 116 134 151 345 219 627 409 130 . 373 1294 65 . 302 2285 140 323 . 259 910 314 . 40 1261 Parts 386 | 5 11 7 30 16 38 21 1 . 11 11 1 . 11 103 2 13 . 13 29 10 . . 53 Haulers Intercepted 7 | . . . 1 1 1 1 . . . . . . 2 1 . . . . . . . . . Recyclers Shooed 2 | . . . . . . . . . . 1 . . . . . . . . 1 . . . . Parts Field Recycled . | . . . . . . . . . . . . . . . . . . . . . . . . Retrieved Matter . | . . . . . . . . . . . . . . . . . . . . . . . . Parts Self-Destructed . | . . . . . . . . . . . . . . . . . . . . . . . . Prevented . | . . . . . . . . . . . . . . . . . . . . . . . . Kills | -11 -10 -10 -9 -8 -8 -7 -7 -7 -6 -6 -6 -6 -6 -5 -5 -5 -5 -4 -4 -4 -4 -3 -3 ------- Run | Yrd Mat Min Mat Mat Sto Fac Low Low Fac Ext Cet Arc Hub Fac Upp Upp War Pro Fac Upp Upp Res Gar Combat Hostiles Destroyed 147 | . 3 1 5 6 9 5 2 . 3 10 1 . . 40 2 8 . 8 14 8 . . 22 Melee 73 | . . . . . 9 5 1 . 1 3 1 . . 17 . 8 . 8 10 6 . . 4 Guns 19 | . 3 1 . . . . . . . . . . . . . . . . 2 . . . 13 AOE 36 | . . . 5 6 . . . . . . . . . 18 . . . . 2 2 . . 3 Classes Destroyed 16 | 2 3 1 4 1 . 2 1 . . . . . . . . . . . . . . . 2 Worker 9 | . . . 1 1 . 2 . . . . . . 2 3 . . . . . . . . . Builder 16 | . 1 . . 1 1 . . . 2 . . . 4 7 . . . . . . . . . Tunneler 1 | 1 . . . . . . . . . . . . . . . . . . . . . . . Hauler 7 | . . . 1 1 1 1 . . . . . . 2 1 . . . . . . . . . Recycler 15 | 1 . . 3 1 1 . . . 1 5 . . . 3 . . . . . . . . . Operator 3 | . . . 1 . . . . . . 1 . . . . . . . . . . . 1 . Watcher 11 | . . . 2 2 . 2 . . 1 1 . . . 1 . . . . 2 . . . . Swarmer 45 | . 1 . 2 2 . . . . . 1 . . . 11 . 5 . 7 3 4 . . 9 Grunt 43 | . 2 . 3 2 4 1 1 . . 6 . . . 9 2 1 . . 6 1 . . 5 Brawler 3 | . . . . . . . 1 . . 1 . . . . . . . . . . . . 1 Duelist 2 | . . . . . . 1 . . . . . . . 1 . . . . . . . . . Sentry 25 | . . 1 . 1 5 2 . . 1 2 . . . 4 . 1 . 1 1 1 . . 5 Specialist 1 | . . . . . . . . . . . . . . . . . . . . . . . 1 Hunter 14 | . . . . 1 . . . . 2 . . . . 8 . 1 . . 2 . . . . Programmer 13 | . . . . . . 1 . . . . . . . 7 . . . . 3 2 . . . Behemoth 1 | . . . . . . . . . . . . . . . . . . . . . . . 1 Cetus Guard 1 | . . . . . . . . . . . 1 . . . . . . . . . . . . Best Kill Streak 11 | 2 4 1 5 5 4 2 1 . 2 11 1 . 7 11 2 7 . 5 3 5 . 1 8 Combat Bots Only 8 | . 3 1 2 4 4 1 1 . 1 7 1 . . 5 2 7 . 5 3 5 . . 8 Max Kills in Single Turn 7 | 2 2 1 3 3 1 1 1 . 1 1 1 . 7 3 1 1 . 1 1 1 . 1 1 Gunslinging . | . . . . . . . . . . . . . . . . . . . . . . . . Exploded 3 | . . . 2 3 . . . . . . . . . 3 . . . . 1 1 . . 1 Melee 1 | . . . . . 1 1 1 . 1 1 1 . . 1 . 1 . 1 1 1 . . 1 Uniques/NPCs Destroyed . | . . . . . . . . . . . . . . . . . . . . . . . . Combat | -11 -10 -10 -9 -8 -8 -7 -7 -7 -6 -6 -6 -6 -6 -5 -5 -5 -5 -4 -4 -4 -4 -3 -3 -------- Run | Yrd Mat Min Mat Mat Sto Fac Low Low Fac Ext Cet Arc Hub Fac Upp Upp War Pro Fac Upp Upp Res Gar Hostile Shots Fired 1838 | . 19 18 2 20 66 97 38 27 30 220 39 12 37 300 8 57 . 127 225 69 . 71 356 Missed 573 | . 7 1 1 9 20 30 16 12 13 97 12 3 18 66 3 17 . 29 68 17 . 29 105 Damage Taken 16789 | . 82 461 109 128 427 349 307 61 79 1159 470 136 362 3119 65 386 . 1163 2305 731 . 530 4360 Core 2920 | . 22 91 38 35 81 53 20 6 26 175 36 31 20 112 . 38 . 138 298 394 . 84 1222 Absorbed by Shields 48 | . . . . . . . . . . 24 24 . . . . . . . . . . . . Ignored by Resistances 10234 | . 54 264 66 78 268 235 185 48 54 730 291 79 219 2051 35 234 . 683 1368 441 . 317 2534 Regen/Repaired (Parts) 617 | . . . . . . . . . . . . . . . . . 617 . . . . . . Core Remaining (%) 73 | 100 . 54 90 . 78 . . 88 . . . . 66 . . . . 71 . . 39 . . Volleys Fired 146 | 3 9 6 12 10 2 6 . . . . 2 2 1 17 3 . . . 5 6 . 4 58 Largest 2 | 2 2 2 2 2 1 1 . . . . 1 1 1 1 1 . . . 1 1 . 2 2 Hottest 240 | 80 80 80 69 69 36 75 . . . . 28 28 28 80 80 . . . 88 88 . 66 240 Shots Fired 229 | 6 18 10 19 20 2 6 . . . . 3 2 2 21 4 . . . 6 8 1 8 93 Gun 146 | 6 18 10 . . . 6 . . . . 3 2 2 2 . . . . 6 5 1 8 77 Cannon 8 | . . . . . . . . . . . . . . . . . . . . . . . 8 Launcher 75 | . . . 19 20 2 . . . . . . . . 19 4 . . . . 3 . . 8 Special . | . . . . . . . . . . . . . . . . . . . . . . . . Kinetic 95 | . . . . . . . . . . . 3 2 2 2 . . . . . . 1 8 77 Thermal 22 | . . . . . . 6 . . . . . . . . . . . . 3 5 . . 8 Explosive 66 | . . . 19 20 2 . . . . . . . . 14 . . . . . 3 . . 8 Electromagnetic 46 | 6 18 10 . . . . . . . . . . . 5 4 . . . 3 . . . . Robot Hit Streak 53 | 6 19 9 11 8 2 11 . . . . 7 9 1 23 3 . . . 4 7 . 13 53 Robot Miss Streak 8 | . 3 . 1 1 1 8 . . . . . . 1 4 1 . . . 1 . . . 1 Penetration Max 1 | . . . . . . . . . . . . . . . . . . . . . . . 1 Secondary Targets 2 | . . . . . . . . . . . . . . . . . . . . . . . 2 Max Gunslinging Chain 1 | . . . . . . . . . . . . . . . . . . . . . . . 1 Shots Hit Robots 495 | 6 14 8 8 13 22 37 13 2 10 39 5 2 3 91 2 14 . 18 62 27 . 6 93 Core Hits 332 | 3 7 4 15 20 15 15 2 . 2 4 1 . 7 117 4 7 . 9 29 13 . 1 57 Critical Kills 14 | . . . . . . 1 . . . . . . . 2 . . . 1 1 . . 1 8 Critical Parts Destroyed 22 | . . . . . . . 3 . 4 6 . . 1 5 . . . . 2 . . . 1 Critical Strikes 74 | . . . . . 3 3 4 . 4 8 . . 1 15 . 4 . 4 12 2 . 1 13 Meltdown 2 | . . . . . . . . . . . . . . . . . . . . . . . 2 Destroy 10 | . . . . . . . . . . . . . . . . . . . . . . 1 9 Smash 28 | . . . . . . 2 4 . 4 6 . . 1 7 . . . 1 3 . . . . Sever 19 | . . . . . 3 1 . . . 2 . . . . . . . . 9 2 . . 2 Impale 15 | . . . . . . . . . . . . . . 8 . 4 . 3 . . . . . Melee Attacks 356 | . . . . . 23 34 15 2 10 45 2 . 4 78 2 14 . 20 63 21 . . 23 Impact 124 | . . . . . . 11 11 2 10 35 2 . 4 35 . . . 3 11 . . . . Slashing 142 | . . . . . 23 23 4 . . 10 . . . . . . . . 38 21 . . 23 Piercing 90 | . . . . . . . . . . . . . . 43 2 14 . 17 14 . . . . Sneak Attacks 22 | . . . . . 5 3 . . 3 6 . . 2 3 . . . . . . . . . Combat Hostiles . | . . . . . . . . . . . . . . . . . . . . . . . . Follow-up Attacks 17 | . . . . . . . 2 . . 4 . . . . . . . 3 6 . . . 2 Damage Inflicted 25820 | 129 216 96 960 953 993 1416 723 55 653 2838 175 36 982 6350 254 453 . 623 2087 1197 . 162 4469 Guns 2743 | 69 184 96 . . . 128 . . . . 76 36 16 46 . . . . 95 122 . 147 1728 Cannons 289 | . . . . . . . . . . . . . . . . . . . . . . . 289 Explosions 7782 | 60 32 . 960 953 40 . . . . . . . 629 2656 254 . . . 161 233 . . 1804 Melee 14988 | . . . . . 953 1288 723 55 653 2838 99 . 337 3648 . 453 . 623 1828 842 . . 648 Ramming 18 | . . . . . . . . . . . . . . . . . . . 3 . . 15 . Kinetic 2049 | . . . . . . . . . . . 76 36 16 46 . . . . . . . 147 1728 Thermal 860 | 60 32 . . . . 128 . . . . . . . 101 . . . . 128 122 . . 289 Explosive 5921 | . . . 960 953 40 . . . . . . . . 1931 . . . . . 233 . . 1804 Electromagnetic 1984 | 69 184 96 . . . . . . . . . . 629 624 254 . . . 128 . . . . Impact 7752 | . . . . . . 543 654 55 653 2648 99 . 337 2196 . . . 141 426 . . . . Slashing 4807 | . . . . . 953 745 69 . . 190 . . . . . . . . 1360 842 . . 648 Piercing 2429 | . . . . . . . . . . . . . . 1452 . 453 . 482 42 . . . . Highest Corruption 17 | . . . . . . . . . . 3 3 3 5 5 3 3 3 . 11 17 17 1 14 Average Corruption 4 | . . . . . . . . . . 3 3 3 3 3 3 3 3 . 5 12 17 1 5 Corruption Purged 9 | . . . . . . . . . . . . . . 9 . . . . . . . . . Corruption Blocked . | . . . . . . . . . . . . . . . . . . . . . . . . Effects 186 | . . . . . . . . . . 10 8 2 7 32 18 15 2 . 26 37 7 . 22 Message Errors 42 | . . . . . . . . . . 1 3 . 3 8 4 2 1 . 3 12 2 . 3 Matter Fused 54 | . . . . . . . . . . 3 2 . 2 8 7 6 1 . 7 10 3 . 5 Heat Flow Errors 13 | . . . . . . . . . . . . . . 1 . 2 . . 2 6 . . 2 Energy Discharges 21 | . . . . . . . . . . 1 . . 1 5 2 2 . . 5 2 . . 3 Parts Rejected 1 | . . . . . . . . . . . 1 . . . . . . . . . . . . Parts Fused 2 | . . . . . . . . . . 1 . . . . . . . . . . . . 1 Data Loss (minor) 22 | . . . . . . . . . . 2 1 2 . 1 3 1 . . 5 4 . . 3 Data Loss (major) 11 | . . . . . . . . . . . . . . 4 1 2 . . 3 1 . . . Misfires 12 | . . . . . . . . . . . 1 . 1 4 1 . . . 1 2 1 . 1 Alerts 6 | . . . . . . . . . . 2 . . . 1 . . . . . . 1 . 2 Weapon Failures 2 | . . . . . . . . . . . . . . . . . . . . . . . 2 Overload Shots . | . . . . . . . . . . . . . . . . . . . . . . . . Overflow Damage 3549 | . . . 58 28 . 79 386 . 352 1256 . . 234 773 . 68 . 24 222 43 . . 26 Projectiles 9 | . . . . . . . . . . . . . . . . . . . . . . . 9 Explosions 246 | . . . 58 28 . . . . . . . . 73 45 . . . . 5 20 . . 17 Melee 3294 | . . . . . . 79 386 . 352 1256 . . 161 728 . 68 . 24 217 23 . . . Knockbacks 29 | . . . . . . 2 2 . 1 12 . . . 10 . . . . 2 . . . . Impact 29 | . . . . . . 2 2 . 1 12 . . . 10 . . . . 2 . . . . Kinetic . | . . . . . . . . . . . . . . . . . . . . . . . . Secondary . | . . . . . . . . . . . . . . . . . . . . . . . . Self-Inflicted Damage 1133 | . . . 106 31 . . . . . . . . 88 459 . . . . 54 98 . . 297 Shots 64 | . . . 6 1 . . . . . . . . 2 42 . . . . 2 3 . . 8 Rammed . | . . . . . . . . . . . . . . . . . . . . . . . . Targets Rammed 3 | . . . . . . . . . . . . . . . . . . . 1 . . 2 . Kicked 3 | . . . . . . . . . . . . . . . . . . . 1 . . 2 . Crushed . | . . . . . . . . . . . . . . . . . . . . . . . . Highest Temperature 317 | 54 171 . . 6 29 153 12 1 6 14 . 4 3 206 317 197 . . 207 255 . . 198 Average Temperature 79 | 29 102 . . 4 16 65 12 1 6 8 . 4 3 39 157 91 . . 49 79 . . 61 Received Heat Transfer 3292 | . 45 . 6 54 324 198 108 24 30 545 99 81 18 216 63 54 . 108 234 186 . 39 860 Effects 1 | . . . . . . . . . . . . . . . 1 . . . . . . . . Interference 1 | . . . . . . . . . . . . . . . 1 . . . . . . . . Siege Activations . | . . . . . . . . . . . . . . . . . . . . . . . . Robots Corrupted 2 | . . . . . . . . . . . . . . . 2 . . . . . . . . Combat Hostiles 2 | . . . . . . . . . . . . . . . 2 . . . . . . . . Parts Fried 56 | . . 1 . . . 3 2 . 9 20 . . 5 11 2 . . . 3 . . . . Impact Corruptions 81 | . . . . . . 3 9 . 12 29 . . 2 20 . . . . 6 . . . . Robots Melted 2 | . . . . . . . . . . . . . . . . . . . . . . . 2 Combat Hostiles 2 | . . . . . . . . . . . . . . . . . . . . . . . 2 Parts Melted 1 | . . . . . . . . . . . . . . . . . . . . . . . 1 Heat Transferred 854 | 100 50 . . . . 110 . . . . . . . 100 . . . . 87 148 . . 259 Parts Sabotaged . | . . . . . . . . . . . . . . . . . . . . . . . . Parts Stolen . | . . . . . . . . . . . . . . . . . . . . . . . . Parts Stripped . | . . . . . . . . . . . . . . . . . . . . . . . . Power Chain Reactions 7 | 1 1 . . . . . . . . . . . 2 2 . . . . 1 . . . . Alert | -11 -10 -10 -9 -8 -8 -7 -7 -7 -6 -6 -6 -6 -6 -5 -5 -5 -5 -4 -4 -4 -4 -3 -3 ------- Run | Yrd Mat Min Mat Mat Sto Fac Low Low Fac Ext Cet Arc Hub Fac Upp Upp War Pro Fac Upp Upp Res Gar Peak Influence 511 | 10 91 70 290 454 303 198 . . 129 299 130 173 400 511 . . . . 246 . . 93 419 Initial 136 | . 4 25 5 87 136 99 . . 9 25 58 25 41 124 . . . . 7 . . 5 54 Average 108 | 2 52 53 106 259 140 63 . . 60 135 112 153 192 119 . . . . 65 . . 32 213 Maximum Alert Level 2 | . . . 1 2 1 . . . . 1 . . 2 2 . . . . 1 . . . 2 Low Security (%) 85 | 100 100 100 81 25 66 100 . . 100 77 100 100 61 86 . . . . 94 . . 100 43 Level 1 13 | . . . 18 60 33 . . . . 22 . . 38 11 . . . . 5 . . . 52 Level 2 1 | . . . . 14 . . . . . . . . . 1 . . . . . . . . 3 Level 3 . | . . . . . . . . . . . . . . . . . . . . . . . . Level 4 . | . . . . . . . . . . . . . . . . . . . . . . . . Level 5 . | . . . . . . . . . . . . . . . . . . . . . . . . High Security . | . . . . . . . . . . . . . . . . . . . . . . . . Max Security . | . . . . . . . . . . . . . . . . . . . . . . . . Squads Dispatched 31 | . . . 1 3 2 3 . . 1 4 . . 3 8 . . . . 5 . . 1 . Investigation 7 | . . . . 1 . 1 . . 1 2 . . . 2 . . . . . . . . . Extermination 9 | . . . . . . 2 . . . . . . . 4 . . . . 3 . . . . Reinforcement 13 | . . . 1 1 2 . . . . 2 . . 2 2 . . . . 2 . . 1 . Assault . | . . . . . . . . . . . . . . . . . . . . . . . . Garrison 2 | . . . . 1 . . . . . . . . 1 . . . . . . . . . . Intercept . | . . . . . . . . . . . . . . . . . . . . . . . . Searches Triggered . | . . . . . . . . . . . . . . . . . . . . . . . . Construction Impeded 1 | . . . . . . . . . . . . . . 1 . . . . . . . . . Haulers Reinforced 2 | . . . . . . . . . . . . . 1 1 . . . . . . . . . Active Scanning Responses . | . . . . . . . . . . . . . . . . . . . . . . . . Cargo Convoy Interrupts 1 | . . . . . . 1 . . . . . . . . . . . . . . . . . Stealth | -11 -10 -10 -9 -8 -8 -7 -7 -7 -6 -6 -6 -6 -6 -5 -5 -5 -5 -4 -4 -4 -4 -3 -3 --------- Run | Yrd Mat Min Mat Mat Sto Fac Low Low Fac Ext Cet Arc Hub Fac Upp Upp War Pro Fac Upp Upp Res Gar Distress Signals 7 | . . . . . 1 2 . . . 2 2 . . . . . . . . . . . . Communications Jammed . | . . . . . . . . . . . . . . . . . . . . . . . . Distress Signals . | . . . . . . . . . . . . . . . . . . . . . . . . Times Spotted 257 | . 4 4 4 10 13 12 10 1 4 19 11 3 11 47 2 9 . 12 32 11 . 10 28 Peak Tracking Total 9 | . 3 2 2 4 7 3 5 1 1 5 5 2 4 7 2 5 . 5 4 5 . 9 7 Tactical Retreats 13 | . . . . . 1 . . . . 2 . . . 1 . 1 . 2 2 3 . . 1 Traps | -11 -10 -10 -9 -8 -8 -7 -7 -7 -6 -6 -6 -6 -6 -5 -5 -5 -5 -4 -4 -4 -4 -3 -3 ------- Run | Yrd Mat Min Mat Mat Sto Fac Low Low Fac Ext Cet Arc Hub Fac Upp Upp War Pro Fac Upp Upp Res Gar Traps Triggered 11 | . . . . . . . . . 2 4 . . . 1 . . . . . . . . 4 Indirectly . | . . . . . . . . . . . . . . . . . . . . . . . . Trap Hack Attempts . | . . . . . . . . . . . . . . . . . . . . . . . . Triggered . | . . . . . . . . . . . . . . . . . . . . . . . . Disarmed . | . . . . . . . . . . . . . . . . . . . . . . . . Reprogrammed . | . . . . . . . . . . . . . . . . . . . . . . . . Reused . | . . . . . . . . . . . . . . . . . . . . . . . . Traps Extracted . | . . . . . . . . . . . . . . . . . . . . . . . . Installed . | . . . . . . . . . . . . . . . . . . . . . . . . Triggered 13 | . . . . . . 1 . . 1 . . . . . . . 10 . . 1 . . . Machines | -11 -10 -10 -9 -8 -8 -7 -7 -7 -6 -6 -6 -6 -6 -5 -5 -5 -5 -4 -4 -4 -4 -3 -3 ---------- Run | Yrd Mat Min Mat Mat Sto Fac Low Low Fac Ext Cet Arc Hub Fac Upp Upp War Pro Fac Upp Upp Res Gar Machines Disabled 30 | . . . 2 3 1 . . . . . . 3 14 3 . . . . 2 . . . 2 Max in Single Turn 12 | . . . 1 2 1 . . . . . . . 12 2 . . . . 2 . . . 1 Garrison Access 2 | . . . . 1 . 1 . . . . . . . . . . . . . . . . . Garrison Relay 2 | . . . . . . . . . . . . . . . . . . . . . . . 2 Network Hub 1 | . . . . . . . . . . . . . 1 . . . . . . . . . . Machines Repaired . | . . . . . . . . . . . . . . . . . . . . . . . . Machines Dismantled . | . . . . . . . . . . . . . . . . . . . . . . . . Machines Sabotaged . | . . . . . . . . . . . . . . . . . . . . . . . . Overloaded Fab Kills . | . . . . . . . . . . . . . . . . . . . . . . . . Hacking | -11 -10 -10 -9 -8 -8 -7 -7 -7 -6 -6 -6 -6 -6 -5 -5 -5 -5 -4 -4 -4 -4 -3 -3 --------- Run | Yrd Mat Min Mat Mat Sto Fac Low Low Fac Ext Cet Arc Hub Fac Upp Upp War Pro Fac Upp Upp Res Gar Machines Accessed 53 | . . . . 3 2 5 . . 6 8 3 1 1 9 . . 5 . 6 1 . 2 1 Terminals 33 | . . . . 1 2 3 . . 4 8 3 . 1 7 . . . . 2 . . 1 1 Fabricators 9 | . . . . . . 1 . . 2 . . . . 2 . . . . 4 . . . . Repair Stations . | . . . . . . . . . . . . . . . . . . . . . . . . Recycling Units 1 | . . . . 1 . . . . . . . . . . . . . . . . . . . Scanalyzers . | . . . . . . . . . . . . . . . . . . . . . . . . Garrison Access 3 | . . . . 1 . 1 . . . . . . . . . . . . . . . 1 . Total Hacks 177 | . . . . 7 3 11 . . 10 20 5 25 1 52 . . 14 . 20 1 . 6 2 Successful 125 | . . . . 2 3 6 . . 6 10 5 25 1 37 . . 14 . 11 1 . 3 1 Failed 52 | . . . . 5 . 5 . . 4 10 . . . 15 . . . . 9 . . 3 1 Catastrophic 7 | . . . . . . 1 . . 3 . . . . 1 . . . . 1 . . 1 . Database Lockouts . | . . . . . . . . . . . . . . . . . . . . . . . . Manual 27 | . . . . . . 4 . . 4 1 2 1 2 12 . . . . . . . 1 . Terminals 101 | . . . . 3 3 7 . . 6 20 5 . 1 44 . . . . 5 . . 5 2 Fabricators 30 | . . . . . . 3 . . 4 . . . . 8 . . . . 15 . . . . Repair Stations . | . . . . . . . . . . . . . . . . . . . . . . . . Recycling Units 1 | . . . . 1 . . . . . . . . . . . . . . . . . . . Scanalyzers . | . . . . . . . . . . . . . . . . . . . . . . . . Garrison Access 5 | . . . . 3 . 1 . . . . . . . . . . . . . . . 1 . Terminal Hacks 92 | . . . . . 3 3 . . 2 9 5 25 . 25 . . 14 . 3 1 . 1 1 Record 53 | . . . . . . 3 . . . 2 4 25 . 6 . . 13 . . . . . . Robot Schematic 2 | . . . . . . . . . . . . . . 1 . . . . 1 . . . . Robot Analysis 5 | . . . . . . . . . 1 . . . . 3 . . . . . . . 1 . Prototype ID Bank 2 | . . . . . 1 . . . . 1 . . . . . . . . . . . . . Open Door 9 | . . . . . . . . . 1 4 1 . . . . . 1 . . 1 . . 1 Machine Index 1 | . . . . . . . . . . . . . . . . . . . 1 . . . . Garrison Index 1 | . . . . . . . . . . . . . . 1 . . . . . . . . . Alert Level 2 | . . . . . . . . . . . . . . 2 . . . . . . . . . Unreport Threat 6 | . . . . . 1 . . . . . . . . 5 . . . . . . . . . Locate Traps 1 | . . . . . . . . . . 1 . . . . . . . . . . . . . Maintenance Status 1 | . . . . . . . . . . . . . . . . . . . 1 . . . . Surveillance Status 2 | . . . . . . . . . . . . . . 2 . . . . . . . . . Patrol Status 1 | . . . . . . . . . . . . . . 1 . . . . . . . . . Transport Status 1 | . . . . . . . . . . . . . . 1 . . . . . . . . . Recall Extermination 1 | . . . . . . . . . . . . . . 1 . . . . . . . . . Hauler Manifests 1 | . . . . . 1 . . . . . . . . . . . . . . . . . . Registered Components 1 | . . . . . . . . . . 1 . . . . . . . . . . . . . Zone Layout 2 | . . . . . . . . . . . . . . 2 . . . . . . . . . Fabricator Hacks 19 | . . . . . . 2 . . 3 . . . . 6 . . . . 8 . . . . Network Status 4 | . . . . . . 1 . . 2 . . . . 1 . . . . . . . . . Load Schematic 6 | . . . . . . . . . . . . . . 2 . . . . 4 . . . . Build 9 | . . . . . . 1 . . 1 . . . . 3 . . . . 4 . . . . Repair Station Hacks . | . . . . . . . . . . . . . . . . . . . . . . . . Recycling Unit Hacks 1 | . . . . 1 . . . . . . . . . . . . . . . . . . . Retrieve Matter 1 | . . . . 1 . . . . . . . . . . . . . . . . . . . Scanalyzer . | . . . . . . . . . . . . . . . . . . . . . . . . Garrison Access Hacks 3 | . . . . 1 . 1 . . . . . . . . . . . . . . . 1 . Unlock Access 1 | . . . . . . . . . . . . . . . . . . . . . . 1 . Seal Access 2 | . . . . 1 . 1 . . . . . . . . . . . . . . . . . Unauthorized Hacks 10 | . . . . . . . . . 1 1 . . 1 6 . . . . . . . 1 . Terminals 10 | . . . . . . . . . 1 1 . . 1 6 . . . . . . . 1 . Botnet 10 | . . . . . . . . . 1 1 . . 1 6 . . . . . . . 1 . Fabricators . | . . . . . . . . . . . . . . . . . . . . . . . . Repair Stations . | . . . . . . . . . . . . . . . . . . . . . . . . Recycling Units . | . . . . . . . . . . . . . . . . . . . . . . . . Scanalyzers . | . . . . . . . . . . . . . . . . . . . . . . . . Garrison Access . | . . . . . . . . . . . . . . . . . . . . . . . . Data Cores Recovered . | . . . . . . . . . . . . . . . . . . . . . . . . Used . | . . . . . . . . . . . . . . . . . . . . . . . . Hacking Detections 38 | . . . . 2 1 4 . . 5 6 2 . 1 9 . . . . 5 . . 2 1 Full Trace Events 6 | . . . . 1 . 1 . . . 2 . . . 2 . . . . . . . . . Feedback Events . | . . . . . . . . . . . . . . . . . . . . . . . . Feedback Blocked . | . . . . . . . . . . . . . . . . . . . . . . . . Robot Schematics Acquired 2 | . . . . . . . . . . . . . . 1 . . . . 1 . . . . Robots Built 12 | . . . . . . 3 . . . . . . . 3 . . . . 6 . . . . Authchips . | . . . . . . . . . . . . . . . . . . . . . . . . Time 737 | . . . . . . 67 . . . . . . . 268 . . . . 402 . . . . Total Robot Build Rating 48 | . . . . . . 12 . . . . . . . 12 . . . . 24 . . . . Part Schematics Acquired . | . . . . . . . . . . . . . . . . . . . . . . . . Parts Built 4 | . . . . . . . . . 2 . . . . 1 . . . . 1 . . . . Authchips . | . . . . . . . . . . . . . . . . . . . . . . . . Time 220 | . . . . . . . . . 39 . . . . 42 . . . . 139 . . . . Total Part Build Rating 31 | . . . . . . . . . 14 . . . . 8 . . . . 9 . . . . Parts Repaired . | . . . . . . . . . . . . . . . . . . . . . . . . Time . | . . . . . . . . . . . . . . . . . . . . . . . . Parts Recycled . | . . . . . . . . . . . . . . . . . . . . . . . . Recycled Matter . | . . . . . . . . . . . . . . . . . . . . . . . . Retrieved Matter . | . . . . . . . . . . . . . . . . . . . . . . . . Retrieved Components . | . . . . . . . . . . . . . . . . . . . . . . . . Parts Scanalyzed . | . . . . . . . . . . . . . . . . . . . . . . . . Part Schematics Acquired . | . . . . . . . . . . . . . . . . . . . . . . . . Parts Damaged . | . . . . . . . . . . . . . . . . . . . . . . . . Bothacking | -11 -10 -10 -9 -8 -8 -7 -7 -7 -6 -6 -6 -6 -6 -5 -5 -5 -5 -4 -4 -4 -4 -3 -3 ------------ Run | Yrd Mat Min Mat Mat Sto Fac Low Low Fac Ext Cet Arc Hub Fac Upp Upp War Pro Fac Upp Upp Res Gar Used RIF Installer . | . . . . . . . . . . . . . . . . . . . . . . . . Robots Hacked . | . . . . . . . . . . . . . . . . . . . . . . . . Non-combat . | . . . . . . . . . . . . . . . . . . . . . . . . Combat . | . . . . . . . . . . . . . . . . . . . . . . . . Robot Hacks Applied . | . . . . . . . . . . . . . . . . . . . . . . . . Relay Couplers Released 10 | . . . . . . . . . . . . . . 3 . . . . . . . . 7 Machine Destruction 7 | . . . . . . . . . . . . . . . . . . . . . . . 7 Programmers 3 | . . . . . . . . . . . . . . 3 . . . . . . . . . Fabnet Peak Effective % . | . . . . . . . . . . . . . . . . . . . . . . . . Robots Rewired 2 | . . . . . . . . . . . . . . . . . . . . . . . 2 Allies Hacked 3 | . . . . . . . . . . . . . . 2 . . . . 1 . . . . Hacks Repelled . | . . . . . . . . . . . . . . . . . . . . . . . . Allies | -11 -10 -10 -9 -8 -8 -7 -7 -7 -6 -6 -6 -6 -6 -5 -5 -5 -5 -4 -4 -4 -4 -3 -3 -------- Run | Yrd Mat Min Mat Mat Sto Fac Low Low Fac Ext Cet Arc Hub Fac Upp Upp War Pro Fac Upp Upp Res Gar Total Allies 27 | . . . . . . 3 . . . 5 5 . . 3 . . . . 7 . . . 4 Largest Group 8 | . . . . . . 3 3 3 2 3 8 7 6 3 1 . . . 4 . . . 2 Highest-Rated Group 695 | . . . . . . 90 90 90 60 221 695 594 441 90 30 . . . 120 . . . 157 Highest-Rated Ally 159 | . . . . . . 30 30 30 30 159 159 153 96 30 30 . . . 56 . . . 95 Total Orders 9 | . . . . . . 2 . . . 2 . . . . . . . . 5 . . . . STAY 3 | . . . . . . 1 . . . 1 . . . . . . . . 1 . . . . FOLLOW 3 | . . . . . . 1 . . . 1 . . . . . . . . 1 . . . . EXPLORE 2 | . . . . . . . . . . . . . . . . . . . 2 . . . . RETURN 1 | . . . . . . . . . . . . . . . . . . . 1 . . . . Ally Attacks 233 | . . . . . . 6 22 3 1 19 73 35 43 6 . . . . 16 . . . 9 Total Damage 7221 | . . . . . . 148 619 60 35 329 2140 1093 1520 205 . . . . 444 . . . 628 Kills 46 | . . . . . . 3 7 1 . 3 9 4 9 2 . . . . 6 . . . 2 Allies Corrupted 1 | . . . . . . . . . . . . . . . . . . . 1 . . . . Allies Melted . | . . . . . . . . . . . . . . . . . . . . . . . . Intel | -11 -10 -10 -9 -8 -8 -7 -7 -7 -6 -6 -6 -6 -6 -5 -5 -5 -5 -4 -4 -4 -4 -3 -3 ------- Run | Yrd Mat Min Mat Mat Sto Fac Low Low Fac Ext Cet Arc Hub Fac Upp Upp War Pro Fac Upp Upp Res Gar Robot Analysis Total 5 | . . . . . . . . . 1 . . . . 3 . . . . . . . 1 . Derelict Logs Recovered 6 | . . . . . . . 2 . . . . . . . 2 1 . 1 . . . . . Drone Launches 8 | . . . . . . . . . . . . . . . . . . . 8 . . . . Drone Recoveries 8 | . . . . . . . . . . . . . . . . . . . 8 . . . . Exploration | -11 -10 -10 -9 -8 -8 -7 -7 -7 -6 -6 -6 -6 -6 -5 -5 -5 -5 -4 -4 -4 -4 -3 -3 ------------- Run | Yrd Mat Min Mat Mat Sto Fac Low Low Fac Ext Cet Arc Hub Fac Upp Upp War Pro Fac Upp Upp Res Gar Turns Passed 15480 | 97 222 380 316 157 384 1384 629 47 556 651 476 226 216 2203 1492 890 810 722 1469 916 141 180 916 Spaces Moved 9124 | 54 121 225 184 94 198 861 498 37 400 443 254 108 94 1067 898 508 489 406 634 860 117 147 427 Core 612 | 8 . 2 23 . . . . . . . . . . . . . . . 55 455 . . 69 Treads 4836 | 46 121 223 . . . . . . . . 216 108 94 1067 898 508 489 406 520 . . . 140 Legs 3497 | . . . 161 94 198 861 498 37 400 443 38 . . . . . . . 59 226 117 147 218 Wheels . | . . . . . . . . . . . . . . . . . . . . . . . . Hover . | . . . . . . . . . . . . . . . . . . . . . . . . Flight 179 | . . . . . . . . . . . . . . . . . . . . 179 . . . Fastest Speed 45 | 50 160 160 125 130 130 120 120 120 120 120 120 160 160 160 165 165 165 165 160 45 120 107 50 Average Speed 144 | 143 160 160 147 130 138 127 120 120 120 120 154 205 216 161 165 165 165 165 180 89 120 109 143 Slowest Speed 600 | 160 160 200 250 130 200 200 120 120 120 120 160 240 240 165 165 165 165 165 350 350 120 120 600 Overloaded Moves . | . . . . . . . . . . . . . . . . . . . . . . . . Propulsion Burnouts . | . . . . . . . . . . . . . . . . . . . . . . . . Robots Hopped . | . . . . . . . . . . . . . . . . . . . . . . . . Cave-ins Triggered . | . . . . . . . . . . . . . . . . . . . . . . . . Exploration Rate (%) 44 | 5 28 75 22 22 44 21 76 11 15 67 84 89 21 30 93 68 78 61 21 80 15 9 41 Regions Visited 23 Branch Regions 14 Pre-discovered Areas 1 | . . . . . . . . . . . . . . . . . . 1 . . . . . Known Exits Taken 23 | 1 1 1 1 1 1 1 1 1 1 1 1 1 1 1 1 1 1 1 1 1 1 1 . Unknown Exits Taken . | . . . . . . . . . . . . . . . . . . . . . . . . Scrap Searched 18 | . . 1 . . . . 3 . . . . . . . 2 5 . 3 . 3 1 . . Spaces Dug 28 | . . . . . . . . . . . . . . 20 2 . . . 3 1 . . 2 Terrain Destroyed 776 | 5 2 . 169 123 35 . . . . . . . 163 206 2 . . . 4 14 1 . 52 Melee 9 | . . . . . . . . . . . . . . 1 2 . . . 3 1 . . 2 Projectile 2 | . . . . . . . . . . . . . . . . . . . . . 1 . 1 AOE 765 | 5 2 . 169 123 35 . . . . . . . 163 205 . . . . 1 13 . . 49 Terrain Rammed . | . . . . . . . . . . . . . . . . . . . . . . . . Walls Destroyed . | . . . . . . . . . . . . . . . . . . . . . . . . Machines Disabled . | . . . . . . . . . . . . . . . . . . . . . . . . Actions | -11 -10 -10 -9 -8 -8 -7 -7 -7 -6 -6 -6 -6 -6 -5 -5 -5 -5 -4 -4 -4 -4 -3 -3 --------- Run | Yrd Mat Min Mat Mat Sto Fac Low Low Fac Ext Cet Arc Hub Fac Upp Upp War Pro Fac Upp Upp Res Gar Total 10732 | 64 131 235 206 107 288 1121 515 38 469 512 333 110 99 1390 902 535 492 429 899 974 117 158 608 Wait 888 | . . 3 1 1 52 186 5 . 46 18 62 . . 199 . 5 1 5 171 62 . . 71 Move 9099 | 53 120 224 183 93 197 860 497 36 399 442 253 107 93 1066 897 507 488 405 633 859 116 146 425 Hop . | . . . . . . . . . . . . . . . . . . . . . . . . Pick Up 36 | 1 1 2 3 3 3 3 . . 4 1 1 . . 4 . 4 . . 2 1 . 1 2 Fast Attach 112 | 7 1 . 3 . 4 17 . . 4 4 6 1 1 12 . 2 1 2 15 12 1 2 17 Attach 39 | . . . 2 . 5 . 2 . 2 3 2 . . 5 . 1 . . 5 4 . . 8 Detach 14 | . . . 1 . . 2 . . . 1 1 . . 2 . . 1 . 3 2 . . 1 Swap 6 | . . . 1 . 1 . . . . . . . . 1 . . 1 . 1 . . 1 . Drop 50 | . . . . . 1 15 . . 4 . 4 . . 6 . 2 . . 7 7 . 2 2 Fire 146 | 3 9 6 12 10 2 6 . . . . 2 2 1 17 3 . . . 5 6 . 4 58 Melee 323 | . . . . . 23 32 11 2 10 35 2 . 4 76 2 14 . 17 55 21 . . 19 Ram . | . . . . . . . . . . . . . . . . . . . . . . . . Kick 3 | . . . . . . . . . . . . . . . . . . . 1 . . 2 . Crush . | . . . . . . . . . . . . . . . . . . . . . . . . Escape Stasis 8 | . . . . . . . . . . 8 . . . . . . . . . . . . . Rewire 8 | . . . . . . . . . . . . . . 2 . . . . 1 . . . 5 Trap . | . . . . . . . . . . . . . . . . . . . . . . . . Miscellaneous . | . . . . . . . . . . . . . . . . . . . . . . . . Route ------- -11/Scrapyard -10/Materials (discovered 2 exits: *Min x2) -10/Mines -9/Materials -8/Materials -8/Storage -7/Factory (discovered 2 exits: *Low x2) -7/Lower Caves -7/Lower Caves -6/Factory (discovered 2 exits: Fac / *Ext) -6/Extension (discovered 2 exits: *Fac / *Cet) -6/Cetus (discovered 2 exits: *Fac / *Arc) -6/Archives (discovered 3 exits: *Fac / *Hub x2) -6/Hub_04(d) -5/Factory (discovered 2 exits: *Fac / *Upp) -5/Upper Caves -5/Upper Caves -5/Warlord -4/Proximity Caves -4/Factory (discovered 2 exits: *Upp / Arm) -4/Upper Caves -4/Upper Caves -3/Research -3/Garrison (discovered 1 exit: *Res) History --------- Turn | Location | Event 10 | -11/Scrapyard | Identified exit to Materials 10 | -11/Scrapyard | Discovered exit to Materials (range 14) 98 | -11/Scrapyard | Entered Materials 98 | -10/Materials | Evolved 1 slot: Utility x1 156 | -10/Materials | Identified exit to Mines 156 | -10/Materials | Discovered exit to Mines (range 9) 260 | -10/Materials | Discovered exit to Mines (range 5) 313 | -10/Materials | Build established: Hacker-Mutant 320 | -10/Materials | Entered Mines 327 | -10/Mines | Received a Rocket Launcher from a helpful Derelict 430 | -10/Mines | Joined a pair of Derelicts in attacking an 0b10 outpost 591 | -10/Mines | Found a damaged Exp. Sensor Array with a note attached 594 | -10/Mines | Found Prototype Device 667 | -10/Mines | Identified exit to Materials 667 | -10/Mines | Discovered exit to Materials (range 16) 676 | -10/Mines | Assembled infested the area 700 | -10/Mines | Entered Materials 700 | -9/Materials | Evolved 2 slots: Utility x2 729 | -9/Materials | Lost 5 parts (1p2n2w) 991 | -9/Materials | Identified exit to Materials 991 | -9/Materials | Discovered exit to Materials (range 5) 1016 | -9/Materials | Entered another Materials area 1016 | -8/Materials | Evolved 2 slots: Utility x2 1049 | -8/Materials | Garrison activated, responded to threat 1143 | -8/Materials | Identified exit to Storage 1143 | -8/Materials | Discovered exit to Storage (range 14) 1173 | -8/Materials | Entered Storage 1185 | -8/Storage | Identified Exp. Sensor Array 1523 | -8/Storage | Identified exit to Factory 1523 | -8/Storage | Discovered exit to Factory (range 16) 1557 | -8/Storage | Entered Factory 1557 | -7/Factory | Evolved 2 slots: Power x1, Propulsion x1 1977 | -7/Factory | Build established: Hacker-Gladiator 2081 | -7/Factory | Fabricated L-41 Fighter (x3) 2437 | -7/Factory | Identified exit to Lower Caves 2437 | -7/Factory | Discovered exit to Lower Caves (range 6) 2767 | -7/Factory | Cargo convoy interrupted 2827 | -7/Factory | Lost 3 allies 2829 | -7/Factory | Found Prototype Processor 2829 | -7/Factory | Identified Exp. Targeting Computer 2915 | -7/Factory | Discovered exit to Lower Caves (range 12) 2941 | -7/Factory | Entered Lower Caves 2941 | -7/Lower Caves | Accompanied by 3 allies 3006 | -7/Lower Caves | Spotted B-75 Beast 3017 | -7/Lower Caves | Allies destroyed B-75 Beast 3215 | -7/Lower Caves | Learned Factory garrison access intel 3234 | -7/Lower Caves | Attracted the attention of an 0b10 checkpoint 3252 | -7/Lower Caves | Attracted the attention of an 0b10 outpost 3469 | -7/Lower Caves | Encountered a Warlord checkpoint 3487 | -7/Lower Caves | Learned location of 1 exit from Factory 3544 | -7/Lower Caves | Identified exit to Lower Caves 3544 | -7/Lower Caves | Discovered exit to Lower Caves (range 8) 3570 | -7/Lower Caves | Entered another Lower Caves area 3570 | -7/Lower Caves | Accompanied by 3 allies 3582 | -7/Lower Caves | Attracted the attention of an 0b10 checkpoint 3601 | -7/Lower Caves | Identified exit to Factory 3601 | -7/Lower Caves | Discovered exit to Factory (range 14) 3617 | -7/Lower Caves | Entered Factory 3617 | -6/Factory | Accompanied by 2 allies 3617 | -6/Factory | Evolved 2 slots: Utility x2 3618 | -6/Factory | Identified exit to Factory 3619 | -6/Factory | Loaded intel: 3 garrison access locations 3987 | -6/Factory | Fabricated Imp. Force Booster (x2) 4162 | -6/Factory | Identified exit to Extension 4162 | -6/Factory | Discovered exit to Extension (range 6) 4173 | -6/Factory | Entered Extension 4173 | -6/Extension | Accompanied by 2 allies 4476 | -6/Extension | Destroyed 7 combat bots 4524 | -6/Extension | Rescued a captive Derelict 4563 | -6/Extension | Spotted B-75 Beast 4572 | -6/Extension | Spotted B-75 Beast 4612 | -6/Extension | Lost 4 parts (1p1n1u1w) 4615 | -6/Extension | Rescued a captive Derelict 4654 | -6/Extension | Rescued a captive Derelict 4655 | -6/Extension | Rescued a captive Derelict 4709 | -6/Extension | Rescued A7 4811 | -6/Extension | Discovered exit to Factory (range 10) 4814 | -6/Extension | Identified exit to Cetus 4814 | -6/Extension | Discovered exit to Cetus (range 6) 4824 | -6/Extension | Entered Cetus 4824 | -6/Cetus | Accompanied by 3 allies (A7) 4829 | -6/Cetus | Acquired a Cetus Manufacturing Module code from A7 4841 | -6/Cetus | Spotted Cetus Guard 4841 | -6/Cetus | Spotted Cetus Guard 4846 | -6/Cetus | Spotted Cetus Guard 4849 | -6/Cetus | Allies destroyed Cetus Guard 4856 | -6/Cetus | Spotted Cetus Guard 4856 | -6/Cetus | Allies destroyed Cetus Guard 4858 | -6/Cetus | Allies destroyed Cetus Guard 4866 | -6/Cetus | Allies destroyed Cetus Guard 4873 | -6/Cetus | Build established: Hacker-Mutant 4885 | -6/Cetus | Lost 3 parts (1p2u) 4985 | -6/Cetus | Started Cetus Manufacturing Module 4996 | -6/Cetus | Escorted A7 to Cetus Mainframe 5010 | -6/Cetus | Manufactured an Enhanced Grunt 5035 | -6/Cetus | Manufactured an Enhanced Grunt 5060 | -6/Cetus | Manufactured an Enhanced Grunt 5085 | -6/Cetus | Manufactured an Enhanced Grunt 5110 | -6/Cetus | Manufactured an Enhanced Grunt 5186 | -6/Cetus | Build established: Scavenger-Mutant 5186 | -6/Cetus | Identified exit to Archives 5186 | -6/Cetus | Discovered exit to Archives (range 15) 5213 | -6/Cetus | Spotted Cetus Guard 5214 | -6/Cetus | Spotted Cetus Guard 5218 | -6/Cetus | Spotted Cetus Guard 5220 | -6/Cetus | Spotted Cetus Guard 5226 | -6/Cetus | Allies destroyed Cetus Guard 5228 | -6/Cetus | Discovered exit to Factory (range 16) 5230 | -6/Cetus | Allies destroyed Cetus Guard 5239 | -6/Cetus | Destroyed Cetus Guard 5240 | -6/Cetus | Allies destroyed Cetus Guard 5242 | -6/Cetus | Met Revision 17 5251 | -6/Cetus | Found Prototype Device 5251 | -6/Cetus | Identified Exp. Thermal Shield 5300 | -6/Cetus | Entered Archives 5300 | -6/Archives | Accompanied by 7 allies (A7) 5311 | -6/Archives | Received a hacking code to weaken MAIN.C 5337 | -6/Archives | Unable to access archive contents 5357 | -6/Archives | Unable to access archive contents 5364 | -6/Archives | Identified exit to Hub_04(d) 5364 | -6/Archives | Discovered exit to Hub_04(d) (range 16) 5373 | -6/Archives | Unable to access archive contents 5380 | -6/Archives | Discovered exit to Hub_04(d) (range 15) 5399 | -6/Archives | Unable to access archive contents 5406 | -6/Archives | Discovered exit to Factory (range 14) 5526 | -6/Archives | Entered Hub_04(d) 5526 | -6/Hub_04(d) | Accompanied by 6 allies 5586 | -6/Hub_04(d) | Discovered exit to Factory (range 9) 5650 | -6/Hub_04(d) | Lost 3 allies 5654 | -6/Hub_04(d) | Garrison activated, responded to threat 5659 | -6/Hub_04(d) | Network Hub disabled 5707 | -6/Hub_04(d) | Spotted B-75 Beast 5742 | -6/Hub_04(d) | Entered Factory 5742 | -5/Factory | Evolved 2 slots: Propulsion x1, Utility x1 5752 | -5/Factory | Lost 3 allies 5894 | -5/Factory | Identified exit to Factory 5894 | -5/Factory | Discovered exit to Factory (range 5) 6517 | -5/Factory | Found Prototype Launcher 6517 | -5/Factory | Identified Rocket Array 6522 | -5/Factory | Found Rocket Array 6832 | -5/Factory | Fabricated Gamma Bomb Array (x1) 7567 | -5/Factory | Identified exit to Upper Caves 7567 | -5/Factory | Discovered exit to Upper Caves (range 15) 7768 | -5/Factory | Fabricated L-41 Fighter (x3) 7856 | -5/Factory | P-70 Sage assimilated allied Fighter 6b 7945 | -5/Factory | Entered Upper Caves 7945 | -5/Upper Caves | Accompanied by 1 ally 8206 | -5/Upper Caves | Learned Factory stockpile data 9417 | -5/Upper Caves | Identified exit to Upper Caves 9417 | -5/Upper Caves | Discovered exit to Upper Caves (range 5) 9437 | -5/Upper Caves | Entered another Upper Caves area 9695 | -5/Upper Caves | Attracted the attention of an 0b10 checkpoint 9745 | -5/Upper Caves | Destroyed 7 combat bots 9745 | -5/Upper Caves | Learned Factory machine intel 9753 | -5/Upper Caves | Lost 3 parts (2u1w) 9770 | -5/Upper Caves | Encountered a Warlord checkpoint 10304 | -5/Upper Caves | Identified exit to Warlord 10304 | -5/Upper Caves | Discovered exit to Warlord (range 12) 10327 | -5/Upper Caves | Entered Warlord 10384 | -5/Warlord | System corruption cleaned by Quarantine Array 10524 | -5/Warlord | Build established: Hacker-Gladiator 10923 | -5/Warlord | Met Warlord 10948 | -5/Warlord | Warlord's base attacked by MAIN.C 11091 | -5/Warlord | Opened side exit 11124 | -5/Warlord | Identified exit to Proximity Caves 11124 | -5/Warlord | Discovered exit to Proximity Caves (range 10) 11137 | -5/Warlord | Entered Proximity Caves 11202 | -4/Proximity Caves | Spotted B-86 Titan 11291 | -4/Proximity Caves | Attracted the attention of an 0b10 checkpoint 11745 | -4/Proximity Caves | Learned location of Testing (-3) 11844 | -4/Proximity Caves | Discovered exit to Factory (range 10) 11859 | -4/Proximity Caves | Entered Factory 11859 | -4/Factory | Evolved 2 slots: Utility x2 11860 | -4/Factory | Identified exit to Armory 11862 | -4/Factory | Loaded intel: 239 machine locations 12030 | -4/Factory | Spotted B-86 Titan 12223 | -4/Factory | Fabricated Enh. Nova Cannon (x1) 12357 | -4/Factory | Fabricated L-41 Fighter (x3) 12525 | -4/Factory | Found Launcher Loader 12742 | -4/Factory | Found Prototype Launcher 12742 | -4/Factory | Identified Mni. Smartbomb Launcher 12828 | -4/Factory | Fabricated L-41 Fighter? 12841 | -4/Factory | P-70 Sage assimilated allied Fighter 7d 12975 | -4/Factory | Lost 4 parts (1n2u1w) 13050 | -4/Factory | Lost 5 parts (1n2u2w) 13081 | -4/Factory | System corruption reached 10% 13294 | -4/Factory | Identified exit to Upper Caves 13294 | -4/Factory | Discovered exit to Upper Caves (range 14) 13328 | -4/Factory | Entered Upper Caves 13376 | -4/Upper Caves | Build established: Scavenger-Mutant 13642 | -4/Upper Caves | Lost 3 parts (1p1n1u) 13914 | -4/Upper Caves | Build established: Hacker-Mutant 14016 | -4/Upper Caves | Core integrity fell below 50% 14094 | -4/Upper Caves | Attracted the attention of an 0b10 checkpoint 14212 | -4/Upper Caves | Identified exit to Upper Caves 14212 | -4/Upper Caves | Discovered exit to Upper Caves (range 9) 14244 | -4/Upper Caves | Entered another Upper Caves area 14367 | -4/Upper Caves | Identified exit to Research 14367 | -4/Upper Caves | Discovered exit to Research (range 16) 14385 | -4/Upper Caves | Entered Research 14385 | -3/Research | Evolved 2 slots: Utility x2 14523 | -3/Research | Spotted B-86 Titan 14564 | -3/Research | Identified exit to Garrison 14565 | -3/Research | Entered Garrison 14846 | -3/Garrison | Spotted B-86 Titan 14850 | -3/Garrison | Triggered checkpoint 14937 | -3/Garrison | Triggered checkpoint 14954 | -3/Garrison | Garrison Relay disabled 14995 | -3/Garrison | Destroyed B-86 Titan 15026 | -3/Garrison | Lost 13 parts (2p4n4u3w) 15279 | -3/Garrison | Destroyed 8 combat bots 15325 | -3/Garrison | Build established: Scavenger-Mutant 15353 | -3/Garrison | Spotted B-86 Titan 15359 | -3/Garrison | System corruption reached 10% 15363 | -3/Garrison | Identified exit to Research 15363 | -3/Garrison | Discovered exit to Research (range 11) 15381 | -3/Garrison | Attempted to access garrison exit controls, blocked by remote lockdown 15385 | -3/Garrison | Core integrity fell below 50% 15399 | -3/Garrison | Core integrity fell below 20% 15427 | -3/Garrison | Found embedded Infiltrators 15431 | -3/Garrison | Lost 14 parts (2p4n3u5w) 15447 | -3/Garrison | Garrison Relay disabled 15481 | -3/Garrison | Destroyed by X-87 Electro with Compact HERF Cannon Last Messages --------------- 15440_ 6A-GKT(x) knocked back. 15440_ Slug penetrates 6A-GKT(x). 15444_ Slug penetrates Wall. 15447_ Slug penetrates 6A-GKT(x). 15447_ Garrison Relay disabled. 15447_ Relay Coupler [Grunt] tumbles out of relay unit. 15447_ Unknown Hackware tumbles out of relay unit. 15447_ Relay Coupler [NC] tumbles out of relay unit. 15453_ System corrupted: Energy discharge (-9). 15454_ 6A-GKT(x) destroyed. 15466_ Imp. Melee Analysis Suite destroyed. 15469_ Destroyed Adv. Power Amplifier. 15472_ C-30 ARC bursts open, deploying its payload. 15474_ Slug penetrates Wall. 15479_ System corrupted: IFF burst signal emitted. Map ----- +----------------------------------------------------+ | | | | | | | | | | | | | | | | | ?????????????????????????????????????????????????? | | ?????????????????????????????????????????????????? | | ?????????????????????????????????????????????????? | | ?????????????????????????????????????????????????? | | ?????????????????????????????????????????????????? | | ?????????????????????????????????????????????????? | | ?????????????????????????????????????????????????? | | ?????????????????????????????????????????????????? | | ?????????????????????????????????????????????????? | | ?????????????????????????????????????????????????? | | ?????????????????????????????????????????????????? | | ?????????????????????????????????????????????????? | | ?????????????????????????????????????????????????? | | ?????????????????????????????????????????????????? | | ?????????????????????????????????????????????????? | | ????????????????????????????####??????##?????????? | | ???????????????????????######%%#???###"#?????????? | | ???????????????????????# @##]%[##### "#?????????? | | ???????????????????????## x=]%=%%!!%!! #?????????? | | ????????????????????????####]][##### "#?????????? | | ???????????????????????????##[[#???# #"#?????????? | | ????????????????????????????#"!#???# #?#?????????? | | ????????????????????????????? #???# #???????????? | | ?????????????????????????????#""???# #???????????? | | ?????????????????????????????# #??# #???????????? | | ?????????????????????????????" ???# #???????????? | | ????????????????????????#####""###?" #???????????? | | ??????????????????####### #?" #???????????? | | ??????????????????# ##?# ??" #???????????? | | ?????????????????#### #?# #??# #???????????? | | ????????????????##==%! ###+"#??# #???????????? | | ????????????????#%== % #??# #???????????? | | ????????????????#*!< #??# #???????????? | | ????????????????# #### #???????????? | | ????????????????## "# ^ #???????????? | | ?????????????????# % # # # ## ######???????????? | | ?????????????????######## ## # #????????????????? | | ????????????????????????# #?## #????????????????? | | ????????????????????????# ??# #????????????????? | | ????????????????????????###??# #????????????????? | | ?????????????????????????????# #?????????????#### | | ?????????????????????????????# #?????????????# | +----------------------------------------------------+ Best States ------------- Heat Dissipation 65 Energy Generation 41 Energy Capacity 575 Matter Stores 300 Matter Capacity 300 Sight Range 16 Terrain Scan Density 10 Additional Mass Support 9 Armor Coverage 1050 Resistance: KI 35 Resistance: TH 35 Resistance: EX 85 Resistance: EM 35 Resistance: I 35 Resistance: S 35 Resistance: P 35 Melee Speed Boost 50 Evasion (%) 61 Targeting Accuracy 12 Melee Accuracy 29 Target Analysis 11 Recoil Reduction 4 Force Boost 30 Offensive Hacking 32 Item Schematics ----------------- None Robot Schematics ------------------ L-41 Fighter | -5/Factory | Hacked G-67 Veteran | -4/Factory | Hacked Fabricated ------------ L-41 Fighter | x3 | -7/Factory | Preloaded Imp. Force Booster | x2 | -6/Factory | Preloaded Gamma Bomb Array | x1 | -5/Factory | Preloaded L-41 Fighter | x3 | -5/Factory Enh. Nova Cannon | x1 | -4/Factory | Preloaded L-41 Fighter | x3 | -4/Factory L-41 Fighter | x3 | -4/Factory Alien Tech Used ----------------- None Achievements -------------- Error 47 Main Advantage Maximum Efficiency Prison Break Project G-00 Revising The Future War Machine Challenges ------------ None Game ------ Seed FieldAssembledSource Manual? 0 Play Time 02:07:36 Cumulative 52.9 hours Start 2024.05.29 @ 16:57:50 End 2024.05.29 @ 19:11:42 Sessions 1 Manual Loads 0 Difficulty Explorer Special Mode None Game No. 25 Rogue 0 Adventurer 19 Explorer 6 Win Type - Total 1 Types 1/0/0/0/0/0/0/0/0 Lore% 34 Gallery% 48 Achievement% 41 Wizard Run 0 Options --------- Layout 1 ASCII 0 Keyboard 0 Movement Mouse Keybinds 0 Fullscreen 0 Font 28/SmallcapsGlow Map View 50x40 Zoom Use 0% Tactical HUD 1 Map Filters NONE Filters NONE Steam 1 RUN: 80417005-ff3a-4d67-9d25-62a7b7ea6384